bitfinex/quotes_ETHUSD_20230831
["timestamp","ask_amount","ask_price","bid_price","bid_amount"]
[1693510707413,12.9639367,1658.9,1658.6,0.20700273]
[1693510708547,12.9638267,1658.9,1658.6,0.20700273]
[1693510708701,19.06271374,1658.9,1658.6,0.20700273]
[1693510710422,19.06271374,1658.9,1658.3,2.4805]
[1693510710619,19.06271374,1658.9,1658.4,2.9277433]
[1693510710834,9.04331,1658.7,1658.4,2.9277433]
[1693510712021,11.16131,1658.7,1658.4,2.9277433]
[1693510714457,11.16131,1658.7,1658.4,7.4501533]
[1693510715556,1.57782704,1658.9,1658.4,18.0100133]
[1693510715759,12.63427704,1659.0,1658.5,1.80100133]
[1693510715926,10.11353704,1659.0,1658.6,9.04361]
[1693510716958,5.59262704,1659.0,1658.6,11.9713533]
[1693510717258,10.11345704,1659.0,1658.6,11.9713533]
[1693510717437,14.63428704,1659.0,1658.6,11.9713533]
[1693510717832,1.57782704,1658.9,1658.6,7.4494833]
[1693510718041,6.09893704,1658.9,1658.6,7.4494833]
[1693510719467,10.62004704,1658.9,1658.6,2.9277433]
[1693510719664,15.14115704,1658.9,1658.6,2.9277433]
[1693510720958,6.09938704,1658.8,1658.7,0.2069623]
[1693510721157,10.62094704,1658.8,1658.7,0.2069623]
[1693510721372,10.62094704,1658.8,1658.6,2.9277433]
[1693510723532,6.09938704,1658.8,1658.6,2.9277433]
[1693510726935,10.62094704,1658.8,1658.6,2.9277433]
[1693510727439,1.57782704,1658.7,1658.6,2.9277433]
[1693510727752,6.09943704,1658.7,1658.6,2.9277433]
[1693510728456,10.62104704,1658.7,1658.3,13.86222]
[1693510728631,10.62104704,1658.7,1658.4,2.9277433]
[1693510728975,10.62104704,1658.7,1658.4,7.4501533]
[1693510729134,6.09943704,1658.7,1658.4,7.4501533]
[1693510732080,1.57782704,1658.6,1658.4,2.9277433]
[1693510732238,15.14427704,1658.5,1658.1,0.602]
[1693510732441,15.14427704,1658.5,1658.2,2.9277433]
[1693510732442,9.0454,1658.3,1658.2,2.9277433]
[1693510732648,9.0454,1658.3,1658.0,0.1]
[1693510732880,9.0454,1658.3,1658.1,2.9277433]
[1693510734702,13.5681,1658.3,1658.1,2.9277433]
[1693510735391,13.5681,1658.3,1658.0,0.1]
[1693510735392,15.2714627,1658.3,1658.0,0.1]
[1693510735603,15.2714627,1658.3,1658.0,3.0277433]
[1693510735787,17.3614627,1658.3,1658.0,3.0277433]
[1693510735970,17.3614627,1658.3,1658.1,0.19716927]
[1693510739814,17.3614627,1658.3,1658.0,0.1]
[1693510739815,20.45428974,1658.3,1658.0,0.1]
[1693510740115,9.04648,1658.1,1658.0,0.1]
[1693510740291,9.0463,1658.2,1658.0,0.1]
[1693510740473,9.0463,1658.2,1658.0,0.29518633]
[1693510742117,13.56939,1658.2,1658.0,0.29518633]
[1693510744287,14.5154453,1658.2,1658.0,0.29518633]
[1693510744480,16.3463261,1658.2,1658.0,0.29518633]
[1693510747625,14.5154453,1658.2,1658.0,0.29518633]
[1693510747981,9.9922353,1658.2,1658.0,0.29518633]
[1693510748395,5.4691453,1658.2,1658.0,3.22292963]
[1693510749809,5.4691453,1658.2,1658.0,3.0277433]
[1693510750207,5.4691453,1658.2,1658.0,7.5512533]
[1693510750541,5.4691453,1658.2,1658.1,0.19248504]
[1693510751220,0.9460553,1658.2,1658.1,0.19248504]
[1693510751414,0.9460553,1658.2,1658.1,10.46567487]
[1693510751614,0.9460553,1658.2,1658.1,19.43165817]
[1693510752208,0.9460553,1658.2,1658.1,20.03365817]
[1693510758263,0.9460553,1658.2,1658.1,15.51041817]
[1693510758626,0.9460553,1658.2,1658.1,6.46393817]
[1693510759557,0.9460553,1658.2,1658.1,10.98717817]
[1693510760417,0.9460553,1658.2,1658.1,6.46393817]
[1693510760661,0.9460553,1658.2,1658.1,8.24546834]
[1693510762073,0.9460553,1658.2,1658.1,0.79448504]
[1693510762733,0.9460553,1658.2,1658.1,5.31772504]
[1693510762930,0.9460553,1658.2,1658.1,12.76870834]
[1693510763260,0.9460553,1658.2,1658.1,18.80694834]
[1693510763462,0.9460553,1658.2,1658.1,21.14997417]
[1693510765422,0.9460553,1658.2,1658.1,16.62673417]
[1693510765660,0.9460553,1658.2,1658.1,9.76046834]
[1693510765959,0.9460553,1658.2,1658.1,0.19248504]
[1693510767760,5.4690253,1658.2,1658.1,0.19248504]
[1693510769136,5.3685253,1658.2,1658.1,0.19248504]
[1693510770323,0.8455553,1658.2,1658.1,0.19248504]
[1693510772826,5.3685253,1658.2,1658.1,0.19248504]
[1693510773026,6.56763483,1658.2,1658.1,0.19248504]
[1693510773250,11.09060483,1658.2,1658.1,0.19248504]
[1693510773465,15.61357483,1658.2,1658.0,0.1]
[1693510773961,11.09060483,1658.2,1658.0,0.1]
[1693510774127,11.79260483,1658.2,1658.0,0.1]
[1693510774324,10.22574048,1658.1,1658.0,0.1]
[1693510774953,10.22574048,1658.1,1658.0,0.30477259]
[1693510776847,14.74898048,1658.1,1658.0,0.30477259]
[1693510781761,10.22574048,1658.1,1658.0,0.30477259]
[1693510783785,9.04648,1658.1,1658.0,0.30477259]
[1693510787053,13.56972,1658.1,1658.0,0.30477259]
[1693510787780,9.04648,1658.1,1658.0,0.30477259]
[1693510789271,13.56972,1658.1,1658.0,0.30477259]
[1693510792381,4.52324,1658.1,1658.0,0.30477259]
[1693510794278,7.26968483,1658.2,1658.0,0.30477259]
[1693510794279,1.5475553,1658.2,1658.0,0.30477259]
[1693510794477,1.5475553,1658.2,1658.0,4.82829259]
[1693510795100,1.5475553,1658.2,1658.0,0.30477259]
[1693510795971,1.5475553,1658.2,1658.0,0.79761485]
[1693510796307,1.5475553,1658.2,1658.0,8.24879815]
[1693510796308,0.8455553,1658.2,1658.0,8.24879815]
[1693510796820,0.8455553,1658.2,1658.0,0.79761485]
[1693510796821,9.8915153,1658.2,1658.0,0.79761485]
[1693510797106,9.8915153,1658.2,1658.0,0.30477259]
[1693510797299,9.8915153,1658.2,1658.0,0.1]
[1693510797482,14.4145053,1658.2,1658.0,0.1]
[1693510797685,14.4145053,1658.2,1658.1,0.19577775]
[1693510799605,14.4145053,1658.2,1658.0,0.1]
[1693510799803,16.23448806,1658.2,1658.0,0.1]
[1693510801301,0.7855553,1658.2,1658.1,0.19577775]
[1693510801612,0.7255553,1658.2,1658.1,0.19577775]
[1693510801809,12.83103228,1658.3,1658.1,0.19577775]
[1693510801971,12.77103228,1658.3,1658.1,0.19577775]
[1693510802307,12.71103228,1658.3,1658.1,0.19577775]
[1693510802483,14.43439051,1658.3,1658.1,0.19577775]
[1693510802678,9.91142051,1658.3,1658.1,0.19577775]
[1693510803603,1.45532228,1658.3,1658.1,4.71891775]
[1693510803909,13.24979273,1658.5,1658.1,4.71891775]
[1693510804286,8.72744273,1658.5,1658.1,4.71891775]
[1693510805114,6.72202,1658.6,1658.1,18.20814105]
[1693510805115,4.09038674,1658.6,1658.1,18.20814105]
[1693510805415,3.76998674,1658.7,1658.2,6.2635574]
[1693510805630,3.76998674,1658.7,1658.3,4.5226]
[1693510805631,8.29162674,1658.7,1658.3,4.5226]
[1693510806512,1.89038674,1658.7,1658.3,13.4880433]
[1693510806874,85.92490995,1658.8,1658.3,13.4880433]
[1693510807070,85.92490995,1658.8,1658.4,10.39336433]
[1693510807524,85.92490995,1658.8,1658.4,5.87096433]
[1693510807677,85.92490995,1658.8,1658.4,10.39339433]
[1693510808402,55.32490995,1658.8,1658.4,10.39339433]
[1693510808742,50.80350995,1658.8,1658.4,10.39339433]
[1693510809021,50.80350995,1658.8,1658.5,5.56139943]
[1693510809181,1.57622157,1658.6,1658.5,5.56139943]
[1693510810686,1.57622157,1658.7,1658.5,1.03933943]
[1693510811207,1.57622157,1658.7,1658.5,1.21871312]
[1693510815389,2.5219455,1658.7,1658.5,1.21871312]
[1693510816283,2.5219455,1658.7,1658.5,0.17937369]
[1693510816489,11.5651655,1658.7,1658.3,2.9277433]
[1693510816990,11.5651655,1658.7,1658.4,0.17941724]
[1693510817304,11.5651655,1658.7,1658.2,9.22680734]
[1693510817511,11.5651655,1658.7,1658.2,4.8429433]
[1693510817512,18.2175055,1658.7,1658.2,4.8429433]
[1693510817841,20.0505055,1658.7,1658.2,4.8429433]
[1693510818137,1.57622157,1658.6,1658.2,4.8429433]
[1693510818315,4.52217,1658.5,1658.2,4.8429433]
[1693510818517,4.52217,1658.5,1658.2,6.38335863]
[1693510819844,4.52217,1658.5,1658.2,1.9152]
[1693510822349,4.52324,1658.1,1658.0,0.1]
[1693510823729,13.56972,1658.1,1658.0,0.1]
[1693510823971,9.04648,1658.1,1658.0,0.1]
[1693510825671,9.288042,1658.1,1658.0,0.1]
[1693510826009,10.36431151,1658.1,1658.0,0.1]
[1693510826168,10.36431151,1658.1,1658.0,0.27323309]
[1693510827654,14.88755151,1658.1,1658.0,0.27323309]
[1693510830279,17.88755151,1658.1,1658.0,0.27323309]
[1693510832332,18.83371107,1658.1,1658.0,0.27323309]
[1693510837257,14.31047107,1658.1,1658.0,0.27323309]
[1693510838143,4.18772156,1658.1,1658.0,0.27323309]
[1693510840867,4.18772156,1658.1,1658.0,0.22345704]
[1693510843561,3.241562,1658.1,1658.0,0.22345704]
[1693510845131,3.241562,1658.1,1658.0,12.19824034]
[1693510845372,3.0,1658.1,1658.0,12.19824034]
[1693510845862,3.0,1658.1,1658.0,14.03192837]
[1693510847533,3.0,1658.1,1658.0,9.50840837]
[1693510849329,3.0,1658.1,1658.0,4.98488837]
[1693510851276,3.0,1658.1,1658.0,2.05714507]
[1693510851491,7.52324,1658.1,1658.0,0.22345704]
[1693510852869,3.0,1658.1,1658.0,0.22345704]
[1693510857089,3.0,1658.1,1658.0,4.74697704]
[1693510857585,3.0,1658.1,1658.0,9.27049704]
[1693510857824,3.0,1658.1,1658.0,12.19824034]
[1693510857981,3.0,1658.1,1658.0,18.40394837]
[1693510858702,3.0,1658.1,1658.0,13.88042837]
[1693510860400,3.0,1658.1,1658.0,22.91894837]
[1693510860679,3.0,1658.1,1658.0,23.39894837]
[1693510860903,3.0,1658.1,1658.0,24.00214837]
[1693510863794,3.0,1658.1,1658.0,23.87869133]
[1693510867916,1.57622157,1658.7,1658.0,37.76021133]
[1693510868077,32.17622157,1658.8,1658.4,1.515]
[1693510868281,1.57622157,1658.9,1658.6,13.56564]
[1693510868525,32.49038674,1659.1,1658.6,13.56564]
[1693510868526,3.74142157,1659.0,1658.7,8.26708925]
[1693510868923,1.57622157,1658.9,1658.7,8.26708925]
[1693510869080,1.57622157,1658.9,1658.7,3.74568925]
[1693510869278,3.74142157,1659.0,1658.7,3.74568925]
[1693510871623,2.1652,1659.0,1658.7,3.74568925]
[1693510871809,6.686,1659.0,1658.7,3.74568925]
[1693510872585,2.1652,1659.0,1658.7,8.26728925]
[1693510872790,2.1652,1659.0,1658.8,0.37456893]
[1693510873087,5.1652,1659.0,1658.8,0.37456893]
[1693510874091,5.1152,1659.0,1658.8,0.37456893]
[1693510876428,9.63606,1659.0,1658.7,3.74568925]
[1693510876628,5.1152,1659.0,1658.7,3.74568925]
[1693510877532,9.63603,1659.0,1658.5,3.6032]
[1693510877734,20.7956876,1659.0,1658.6,2.9277433]
[1693510877912,20.7956876,1659.0,1658.5,2.9277433]
[1693510878107,2.07956876,1658.9,1658.5,2.9277433]
[1693510878440,4.52139,1658.8,1658.5,2.9277433]
[1693510878832,6.61329,1658.8,1658.5,2.9277433]
[1693510881335,11.13468,1658.8,1658.5,2.9277433]
[1693510881913,6.61329,1658.8,1658.5,2.9277433]
[1693510882434,6.61329,1658.8,1658.5,3.91949963]
[1693510885051,2.0919,1658.8,1658.6,5.9277433]
[1693510885256,3.0,1659.0,1658.7,19.60144]
[1693510885421,3.0,1659.0,1658.8,8.0459433]
[1693510885742,3.0,1659.0,1658.9,13.56318]
[1693510885948,3.0,1659.0,1658.9,17.99930095]
[1693510886150,3.0,1659.0,1658.9,13.47824095]
[1693510886310,3.0,1659.0,1658.9,20.99930095]
[1693510887049,3.0,1659.0,1658.9,28.11856095]
[1693510892461,3.0,1659.0,1658.9,23.59750095]
[1693510894264,3.0,1659.0,1658.9,14.55538095]
[1693510894423,3.0,1659.0,1658.9,8.51932095]
[1693510895780,3.0,1659.0,1658.9,6.5309433]
[1693510897592,3.0,1659.0,1658.9,7.00705386]
[1693510901387,3.0,1659.0,1658.9,6.5309433]
[1693510906140,3.0,1659.0,1658.9,11.0520033]
[1693510907692,3.0,1659.0,1658.9,15.5730633]
[1693510910670,3.0,1659.0,1658.9,22.15215637]
[1693510910838,3.0,1659.0,1658.9,22.63215637]
[1693510911030,3.0,1659.0,1658.9,18.11109637]
[1693510912365,3.0,1659.0,1658.9,24.14715637]
[1693510912869,3.0,1659.0,1658.9,19.62609637]
[1693510913024,3.0,1659.0,1658.9,30.50515637]
[1693510913635,3.0,1659.0,1658.9,25.98409637]
[1693510914730,3.0,1659.0,1658.9,15.10503637]
[1693510914932,3.0,1659.0,1658.9,10.58397637]
[1693510915133,3.0,1659.0,1658.9,15.10503637]
[1693510916067,3.0,1659.0,1658.9,13.59003637]
[1693510917135,3.0,1659.0,1658.9,6.5309433]
[1693510917336,3.0,1659.0,1658.9,3.5309433]
[1693510920459,3.0,1659.0,1658.9,8.0520033]
[1693510921394,3.0,1659.0,1658.9,23.0941233]
[1693510921543,3.0,1659.0,1658.9,23.5741233]
[1693510921866,3.0,1659.0,1658.9,26.76744737]
[1693510922253,3.0,1659.0,1658.9,28.28244737]
[1693510922854,3.0,1659.0,1658.9,26.76744737]
[1693510924967,2.95,1659.0,1658.9,26.76744737]
[1693510925591,2.9,1659.0,1658.9,26.76744737]
[1693510925762,2.85,1659.0,1658.9,33.12544737]
[1693510927886,2.85,1659.0,1658.9,34.64044737]
[1693510933201,2.85,1659.0,1658.9,23.76138737]
[1693510934094,2.85,1659.0,1658.9,17.72532737]
[1693510936892,2.85,1659.0,1658.9,22.24638737]
[1693510944359,2.85,1659.0,1658.9,19.24638737]
[1693510944544,2.85,1659.0,1658.9,7.0109433]
[1693510944907,2.85,1659.0,1658.9,11.5320033]
[1693510945617,2.85,1659.0,1658.9,7.0109433]
[1693510947132,2.85,1659.0,1658.9,17.5680633]
[1693510947340,2.85,1659.0,1658.9,22.0891233]
[1693510947534,2.85,1659.0,1658.9,25.43456737]
[1693510951730,2.85,1659.0,1658.9,22.43456737]
[1693510951929,2.85,1659.0,1658.9,25.43456737]
[1693510952858,2.85,1659.0,1658.9,19.39850737]
[1693510953040,2.85,1659.0,1658.9,11.5320033]
[1693510953237,2.85,1659.0,1658.9,6.5309433]
[1693510953562,2.85,1659.0,1658.9,11.0520033]
[1693510955265,2.85,1659.0,1658.9,8.0520033]
[1693510955564,2.85,1659.0,1658.9,11.0520033]
[1693510957433,2.85,1659.0,1658.9,6.5309433]
[1693510958037,12.33447379,1659.0,1658.8,0.48611739]
[1693510958231,12.33447379,1659.0,1658.5,4.52212]
[1693510958232,6.09999792,1658.9,1658.5,4.52212]
[1693510958432,3.72513792,1658.9,1658.6,7.4494033]
[1693510958739,3.72513792,1658.9,1658.6,16.4930033]
[1693510959334,3.72513792,1658.9,1658.6,18.20262363]
[1693510959537,2.1462,1658.9,1658.6,19.71762363]
[1693510960055,2.1462,1658.9,1658.7,0.48]
[1693510960243,2.1462,1658.9,1658.8,7.4490833]
[1693510964771,2.1462,1658.9,1658.8,2.9277433]
[1693510965875,2.1462,1658.9,1658.6,6.23128033]
[1693510966068,2.1462,1658.9,1658.7,2.9277433]
[1693510968487,2.1462,1658.9,1658.7,7.4492933]
[1693510972681,2.1462,1658.9,1658.7,11.9709033]
[1693510972979,2.1462,1658.9,1658.7,16.4925133]
[1693510973884,4.7056,1659.0,1658.7,16.4925133]
[1693510974087,4.7056,1659.0,1658.8,1.64925133]
[1693510974399,6.697,1659.0,1658.9,11.9698633]
[1693510974582,4.8414,1659.0,1658.9,11.9698633]
[1693510975149,4.8414,1659.0,1658.9,7.4488033]
[1693510979292,4.8414,1659.0,1658.9,2.9277433]
[1693510986103,4.8414,1659.0,1658.9,7.4488033]
[1693510993584,2.85,1659.0,1658.9,13.37868463]
[1693510993798,2.85,1659.0,1658.9,22.89474463]
[1693511005934,2.85,1659.0,1658.9,23.37265854]
[1693511016497,2.85,1659.0,1658.9,32.73065854]
[1693511016734,2.083,1659.4,1659.0,11.14606585]
[1693511016935,2.083,1659.4,1659.3,1.515]
[1693511017238,2.083,1659.4,1659.3,18.0026533]
[1693511020250,1.89472551,1659.7,1659.3,18.0026533]
[1693511020463,1.89472551,1659.7,1659.5,9.03886]
[1693511020600,3.88072551,1659.7,1659.5,11.9666033]
[1693511020805,1.986,1659.7,1659.6,2.9277433]
[1693511021119,1.986,1659.7,1659.6,7.4469033]
[1693511022208,1.986,1659.7,1659.6,4.4469033]
[1693511022811,1.97797373,1659.7,1659.6,4.4469033]
[1693511023949,1.97797373,1659.7,1659.6,7.3746466]
[1693511024148,1.97797373,1659.7,1659.6,14.81762793]
[1693511024858,0.101,1659.9,1659.6,19.81678793]
[1693511025155,0.101,1659.9,1659.8,13.55583]
[1693511025312,0.101,1659.9,1659.8,16.4835733]
[1693511025508,0.101,1659.9,1659.8,16.9635733]
[1693511025733,0.101,1659.9,1659.8,22.41180463]
[1693511026414,0.101,1659.9,1659.8,20.01139463]
[1693511028662,0.101,1659.9,1659.8,24.53000463]
[1693511031065,0.101,1659.9,1659.8,30.88800463]
[1693511031669,0.101,1659.9,1659.8,20.01139463]
[1693511033466,0.101,1659.9,1659.8,7.0109433]
[1693511033655,0.101,1659.9,1659.8,11.5295533]
[1693511034559,0.101,1659.9,1659.8,11.0495533]
[1693511036038,0.101,1659.9,1659.8,11.53942309]
[1693511036645,0.101,1659.9,1659.8,7.02081309]
[1693511036846,0.101,1659.9,1659.8,6.5309433]
[1693511037383,0.101,1659.9,1659.8,3.5309433]
[1693511042409,0.573022,1659.9,1659.8,3.5309433]
[1693511042730,0.573022,1659.9,1659.8,2.9277433]
[1693511043030,0.573022,1659.9,1659.7,0.6032]
[1693511043320,2.648122,1659.9,1659.7,6.5309433]
[1693511043527,2.1761,1659.9,1659.7,6.5309433]
[1693511043683,2.1761,1659.9,1659.7,11.0497533]
[1693511044288,2.1761,1659.9,1659.7,6.5309433]
[1693511044658,2.1761,1659.9,1659.8,3.5309433]
[1693511044928,0.101,1659.9,1659.8,16.12001463]
[1693511046025,0.101,1659.9,1659.8,6.60279463]
[1693511046520,0.101,1659.9,1659.8,11.12140463]
[1693511046694,0.101,1659.9,1659.8,15.64001463]
[1693511047021,0.101,1659.9,1659.8,14.12501463]
[1693511048783,0.101,1659.9,1659.8,15.64001463]
[1693511049750,0.101,1659.9,1659.8,20.15862463]
[1693511050050,0.101,1659.9,1659.8,20.63862463]
[1693511050409,0.101,1659.9,1659.8,23.63862463]
[1693511056137,0.101,1659.9,1659.8,14.60140463]
[1693511056305,0.101,1659.9,1659.8,17.5631633]
[1693511057312,0.101,1659.9,1659.8,13.0445533]
[1693511058216,0.101,1659.9,1659.8,8.5259433]
[1693511058466,0.101,1659.9,1659.8,13.0445533]
[1693511058638,0.101,1659.9,1659.8,12.5645533]
[1693511058844,0.101,1659.9,1659.8,13.0445533]
[1693511059156,0.101,1659.9,1659.8,17.5631633]
[1693511059362,0.101,1659.9,1659.8,18.04880311]
[1693511063266,0.101,1659.9,1659.8,20.30555242]
[1693511063437,0.101,1659.9,1659.8,24.82416242]
[1693511064814,0.101,1659.9,1659.8,7.49658311]
[1693511065072,0.101,1659.9,1659.8,29.97305457]
[1693511067261,0.101,1659.9,1659.8,14.57783457]
[1693511067461,0.101,1659.9,1659.8,19.09644457]
[1693511067758,0.101,1659.9,1659.8,18.04880311]
[1693511068062,0.101,1659.9,1659.8,25.87178641]
[1693511068765,0.101,1659.9,1659.8,25.87180235]
[1693511069872,0.101,1659.9,1659.8,25.87178552]
[1693511070826,0.101,1659.9,1659.8,24.82417342]
[1693511071026,0.101,1659.9,1659.8,25.87178783]
[1693511072068,0.101,1659.9,1659.8,24.82417342]
[1693511072450,0.101,1659.9,1659.8,25.8717675]
[1693511072764,0.101,1659.9,1659.8,24.82417342]
[1693511072969,0.101,1659.9,1659.8,35.22973628]
[1693511073473,0.101,1659.9,1659.8,36.80120335]
[1693511074989,0.101,1659.9,1659.8,36.80095871]
[1693511075366,2.2858,1660.2,1660.0,7.873]
[1693511075367,0.101,1660.2,1660.0,7.873]
[1693511075561,0.101,1660.2,1660.1,25.2662433]
[1693511076086,0.101,1660.2,1660.1,33.7424433]
[1693511081956,0.101,1660.2,1660.1,34.65227713]
[1693511082601,0.101,1660.2,1660.1,35.14456625]
[1693511087478,0.101,1660.2,1660.1,30.62676625]
[1693511090210,0.101,1660.2,1660.1,18.84113242]
[1693511090426,0.101,1660.2,1660.1,23.35893242]
[1693511098330,0.101,1660.2,1660.1,9.02103242]
[1693511098635,0.101,1660.2,1660.1,4.50323242]
[1693511099209,0.101,1660.2,1660.1,9.02103242]
[1693511099404,0.101,1660.2,1660.1,4.50323242]
[1693511100118,0.101,1660.2,1660.1,12.02103242]
[1693511100284,0.101,1660.2,1660.1,18.05383242]
[1693511100491,0.101,1660.2,1660.1,13.53603242]
[1693511101290,0.101,1660.2,1660.1,7.50323242]
[1693511101495,0.101,1660.2,1660.1,4.50323242]
[1693511103410,0.101,1660.2,1660.1,4.02323242]
[1693511104835,0.101,1660.2,1660.1,8.54103242]
[1693511105633,0.101,1660.2,1660.1,4.02323242]
[1693511106130,0.101,1660.2,1660.1,5.61328912]
[1693511106791,0.101,1660.2,1660.1,5.121]
[1693511106992,0.101,1660.2,1660.1,0.6032]
[1693511107209,4.61852,1660.2,1660.1,0.6032]
[1693511107437,9.803202,1660.2,1659.9,0.6032]
[1693511107638,9.803202,1660.2,1660.0,2.9277433]
[1693511107793,9.803202,1660.2,1659.9,3.5309433]
[1693511109425,14.320722,1660.2,1659.9,3.5309433]
[1693511110309,14.320722,1660.2,1659.8,0.6032]
[1693511110504,9.03614,1660.0,1659.8,3.5309433]
[1693511110724,3.5849722,1660.1,1659.8,3.5309433]
[1693511110725,8.1029122,1660.1,1659.8,3.5309433]
[1693511110909,8.1029122,1660.1,1659.8,8.0494733]
[1693511112460,8.1029122,1660.1,1659.8,3.5309433]
[1693511112912,12.6208522,1660.1,1659.8,3.5309433]
[1693511113981,2.1529,1660.1,1659.9,2.9277433]
[1693511114113,2.1529,1660.1,1660.0,13.55421]
[1693511114315,0.101,1660.2,1660.0,19.0801533]
[1693511114564,2.2471,1660.2,1660.1,5.0459433]
[1693511114764,2.2471,1660.2,1660.1,14.0815433]
[1693511115436,2.2471,1660.2,1660.1,12.5665433]
[1693511116014,2.2471,1660.2,1660.1,8.0487433]
[1693511116242,2.2471,1660.2,1660.1,2.9277433]
[1693511116450,6.76462,1660.2,1660.0,0.6032]
[1693511116646,2.2471,1660.2,1660.0,3.5309433]
[1693511117064,8.087819,1660.2,1660.0,3.5309433]
[1693511117422,3.570269,1660.2,1660.0,3.5309433]
[1693511117763,8.087849,1660.2,1660.0,0.6032]
[1693511117917,3.570269,1660.2,1660.0,5.12125]
[1693511118432,2.2471,1660.2,1660.0,14.0820633]
[1693511122963,2.2471,1660.2,1660.0,12.5670633]
[1693511124168,2.2471,1660.2,1660.0,14.0820633]
[1693511124635,2.2471,1660.2,1660.1,17.9961433]
[1693511124834,0.101,1660.2,1660.1,17.9961433]
[1693511125037,0.101,1660.2,1660.1,20.30788263]
[1693511131705,39.73407,1660.6,1660.1,33.14588263]
[1693511131706,30.701,1660.6,1660.1,33.14588263]
[1693511131916,30.701,1660.6,1660.5,1.515]
[1693511131917,0.101,1660.6,1660.5,1.515]
[1693511132056,0.101,1660.6,1660.5,13.4761633]
[1693511132255,0.101,1660.6,1660.5,15.27546363]
[1693511132970,0.101,1660.6,1660.5,19.79217363]
[1693511133175,0.101,1660.6,1660.5,22.79217363]
[1693511133577,0.101,1660.6,1660.5,23.39537363]
[1693511140331,0.101,1660.6,1660.5,23.87537363]
[1693511161271,0.101,1660.6,1660.5,17.0793633]
[1693511161472,0.101,1660.6,1660.5,11.0476533]
[1693511161678,0.101,1660.6,1660.5,3.5309433]
[1693511162066,0.101,1660.6,1660.5,8.0476533]
[1693511165685,0.101,1660.6,1660.5,12.5643633]
[1693511166603,0.101,1660.6,1660.5,30.01551208]
[1693511171165,0.101,1660.7,1660.5,40.42062111]
[1693511171383,0.101,1660.7,1660.6,8.5259433]
[1693511171588,0.101,1660.7,1660.6,22.0752333]
[1693511177939,0.101,1660.7,1660.6,6.5309433]
[1693511178417,0.101,1660.7,1660.6,11.0473733]
[1693511178625,0.101,1660.7,1660.6,15.5638033]
[1693511178786,0.101,1660.7,1660.6,21.5952333]
[1693511179390,0.101,1660.7,1660.6,24.68641363]
[1693511180733,0.101,1660.7,1660.6,17.5588033]
[1693511181120,0.101,1660.7,1660.6,8.0459433]
[1693511181298,0.101,1660.7,1660.6,12.5623733]
[1693511182891,0.101,1660.7,1660.6,6.5309433]
[1693511183200,0.101,1660.7,1660.6,3.5309433]
[1693511183827,0.101,1660.7,1660.6,8.0473733]
[1693511185946,0.101,1660.7,1660.6,8.52320649]
[1693511188252,0.101,1660.7,1660.6,13.03963649]
[1693511188442,0.101,1660.7,1660.6,19.07106649]
[1693511189810,0.101,1660.7,1660.6,21.42982814]
[1693511190013,0.101,1660.7,1660.6,21.90982814]
[1693511190550,0.101,1660.7,1660.6,17.39339814]
[1693511190718,0.101,1660.7,1660.6,10.03820649]
[1693511195370,0.101,1660.7,1660.6,2.9277433]
[1693511195917,0.101,1660.7,1660.5,5.11985]
[1693511196117,0.101,1660.7,1660.5,9.63632]
[1693511198790,0.101,1660.7,1660.5,5.11967]
[1693511198950,0.772403,1660.7,1660.5,5.11967]
[1693511199387,0.101,1660.7,1660.5,9.63638]
[1693511200966,0.101,1660.7,1660.5,5.11967]
[1693511201164,0.101,1660.7,1660.5,0.6032]
[1693511202297,4.6172,1660.7,1660.5,0.6032]
[1693511202598,9.1334,1660.7,1660.5,0.6032]
[1693511202759,0.91334,1660.6,1660.5,0.6032]
[1693511203393,5.42977,1660.6,1660.5,0.6032]
[1693511203552,0.91334,1660.6,1660.5,0.6032]
[1693511205284,5.42977,1660.6,1660.5,0.6032]
[1693511206607,9.9462,1660.6,1660.5,0.6032]
[1693511207309,5.42977,1660.6,1660.5,0.6032]
[1693511210440,9.9462,1660.6,1660.5,0.6032]
[1693511212377,9.9462,1660.6,1660.4,0.48111448]
[1693511212572,9.9462,1660.6,1660.3,0.6032]
[1693511212573,0.99462,1660.5,1660.3,0.6032]
[1693511212778,13.55094,1660.4,1659.8,6.03347]
[1693511213112,15.58004,1660.4,1659.9,2.9277433]
[1693511213271,15.58004,1660.4,1659.9,7.4459933]
[1693511213474,1.558004,1660.3,1659.9,11.9643333]
[1693511213789,16.624914,1660.3,1659.7,0.49429794]
[1693511213988,2.0291,1660.2,1659.8,2.9277433]
[1693511214194,4.5178,1660.1,1659.8,2.9277433]
[1693511214579,4.5178,1660.1,1659.8,7.4463533]
[1693511214814,0.45178,1660.0,1659.7,4.51875]
[1693511215116,4.51834,1659.9,1659.7,2.9277433]
[1693511215281,11.54515,1660.0,1659.7,2.9277433]
[1693511215520,7.02687,1660.0,1659.7,2.9277433]
[1693511215719,7.02687,1660.0,1659.7,7.4466133]
[1693511215922,7.02687,1660.0,1659.8,0.6032]
[1693511218246,0.702687,1659.9,1659.8,0.6032]
[1693511218547,9.739367,1659.9,1659.5,5.12258]
[1693511218748,9.739367,1659.9,1659.5,3.5309433]
[1693511218966,14.257707,1659.9,1659.5,3.5309433]
[1693511219170,5.82553807,1659.8,1659.5,3.5309433]
[1693511219381,11.233,1659.8,1659.5,3.5309433]
[1693511219886,6.71425,1659.8,1659.5,8.0503533]
[1693511220042,2.1955,1659.8,1659.5,14.0847833]
[1693511221791,6.46924,1659.9,1659.5,14.0847833]
[1693511221792,1.9509,1659.9,1659.7,1.515]
[1693511221998,2.0861,1660.1,1659.8,9.03722]
[1693511222146,2.0861,1660.1,1659.8,15.07083]
[1693511222473,30.6,1660.2,1659.9,3.5309433]
[1693511222474,32.5708,1660.2,1659.9,3.5309433]
[1693511222682,32.5708,1660.2,1660.0,4.51807]
[1693511223047,30.6,1660.2,1659.9,8.0491333]
[1693511223382,35.11753,1660.2,1659.9,9.45740763]
[1693511223583,39.63506,1660.2,1659.9,4.93921763]
[1693511223964,39.63506,1660.2,1659.9,3.5309433]